bitfinex-derivatives/quotes_BTCF0:USTF0_20250703
["timestamp","ask_amount","ask_price","bid_price","bid_amount"]
[1751557591487,0.342,109320.0,109310.0,0.94109131]
[1751557594500,0.5248873,109320.0,109310.0,0.3148909]
[1751557594695,0.5875873,109320.0,109310.0,0.60109131]
[1751557594998,0.90378771,109320.0,109310.0,0.251992]
[1751557595189,0.93628771,109320.0,109310.0,0.251992]
[1751557595586,0.6200873,109320.0,109310.0,0.251992]
[1751557596199,0.93628771,109320.0,109310.0,0.08308821]
[1751557596498,0.93628771,109320.0,109310.0,0.02829582]
[1751557596792,0.96745419,109320.0,109310.0,0.02829582]
[1751557597593,0.93628771,109320.0,109310.0,0.02829582]
[1751557597992,0.93628771,109320.0,109310.0,0.01399992]
[1751557598199,0.95849315,109320.0,109310.0,0.02829714]
[1751557598897,0.95849315,109320.0,109310.0,0.21120114]
[1751557599101,0.93628771,109320.0,109310.0,0.21120114]
[1751557599493,0.9453787,109320.0,109310.0,0.21120114]
[1751557600197,1.26157911,109320.0,109310.0,0.02829714]
[1751557600599,0.967569,109320.0,109310.0,0.02829714]
[1751557600799,1.28376941,109320.0,109310.0,0.02829714]
[1751557600993,1.28376941,109320.0,109310.0,0.02854755]
[1751557601494,0.967569,109320.0,109310.0,0.02854755]
[1751557601899,0.967569,109320.0,109310.0,0.21145155]
[1751557602100,0.967569,109320.0,109310.0,0.02854755]
[1751557603102,0.967569,109320.0,109310.0,0.21145155]
[1751557603502,0.967569,109320.0,109310.0,0.02854755]
[1751557604097,1.28376941,109320.0,109310.0,0.02854755]
[1751557604700,1.46672941,109320.0,109310.0,0.02854755]
[1751557605401,0.1829374,109290.0,109280.0,0.05479239]
[1751557605599,1.17533822,109290.0,109280.0,0.23774659]
[1751557605901,0.5429374,109290.0,109280.0,0.1829542]
[1751557606098,0.6373374,109290.0,109280.0,0.1829542]
[1751557606290,0.6373374,109290.0,109280.0,0.2131542]
[1751557606897,0.6393374,109290.0,109280.0,0.2131542]
[1751557607096,0.6403374,109290.0,109280.0,0.2171542]
[1751557607601,0.6100374,109290.0,109280.0,0.2171542]
[1751557607798,0.6100374,109290.0,109280.0,0.53335461]
[1751557608005,0.6100374,109290.0,109280.0,0.2171542]
[1751557608303,0.6100374,109290.0,109280.0,0.53335461]
[1751557608491,0.6100374,109290.0,109280.0,0.1869542]
[1751557608692,0.95853781,109290.0,109280.0,0.004]
[1751557609098,0.1829542,109280.0,109270.0,0.27627464]
[1751557609300,0.5734542,109280.0,109270.0,0.57793285]
[1751557609799,0.5734542,109280.0,109270.0,0.21599264]
[1751557610004,0.88965461,109280.0,109270.0,0.03303024]
[1751557610206,0.6057542,109280.0,109270.0,0.53220155]
[1751557610396,0.5734542,109280.0,109270.0,0.53420155]
[1751557610598,0.5429542,109280.0,109270.0,0.83620155]
[1751557611199,0.5429542,109280.0,109270.0,0.56620155]
[1751557611602,0.85915461,109280.0,109270.0,0.00383024]
[1751557611802,0.6086542,109280.0,109270.0,0.18780114]
[1751557612200,0.92485461,109280.0,109270.0,0.00483024]
[1751557612606,0.6086542,109280.0,109270.0,0.18780114]
[1751557612805,0.6086542,109280.0,109270.0,0.53690155]
[1751557613007,0.5763542,109280.0,109270.0,0.53690155]
[1751557613208,0.5439542,109280.0,109270.0,0.53690155]
[1751557613500,0.5439542,109280.0,109270.0,0.56950155]
[1751557614503,0.5439542,109280.0,109270.0,0.50400155]
[1751557614707,0.5751542,109280.0,109270.0,0.50400155]
[1751557614904,0.5751542,109280.0,109270.0,0.53420155]
[1751557615903,0.5751542,109280.0,109270.0,0.21800114]
[1751557616306,0.89135461,109280.0,109270.0,0.21800114]
[1751557616711,0.5751542,109280.0,109270.0,0.21800114]
[1751557616906,0.92185461,109280.0,109270.0,0.21800114]
[1751557617399,0.92185461,109280.0,109270.0,0.2466039]
[1751557618012,0.92185461,109280.0,109270.0,0.24660396]
[1751557618911,0.92185461,109280.0,109270.0,0.23230258]
[1751557619114,0.92185461,109280.0,109270.0,0.24660407]
[1751557619811,0.99486367,109280.0,109270.0,0.24660407]
[1751557620205,0.67866326,109280.0,109270.0,0.24660407]
[1751557620407,0.64816326,109280.0,109270.0,0.53260448]
[1751557620715,0.64816326,109280.0,109270.0,0.56550448]
[1751557620910,0.64816326,109280.0,109270.0,0.59820448]
[1751557621212,0.64816326,109280.0,109270.0,0.24930366]
[1751557621617,0.64816326,109280.0,109270.0,0.56550407]
[1751557622507,0.64816326,109280.0,109270.0,0.24930366]
[1751557622709,0.96436367,109280.0,109270.0,0.24930366]
[1751557623008,0.64816326,109280.0,109270.0,0.24930366]
[1751557624113,0.64816326,109280.0,109270.0,0.24930369]
[1751557624315,0.96436367,109280.0,109270.0,0.24930369]
[1751557627016,0.64816326,109280.0,109270.0,0.24930369]
[1751557627415,0.64816326,109280.0,109270.0,0.28020369]
[1751557627717,0.61696326,109280.0,109270.0,0.5964041]
[1751557630320,0.93316367,109280.0,109270.0,0.06633279]
[1751557630518,1.01831659,109280.0,109270.0,0.03343279]
[1751557631018,1.01831659,109280.0,109270.0,0.03343776]
[1751557631811,1.01731659,109280.0,109270.0,0.03243776]
[1751557632014,1.01931659,109280.0,109270.0,0.03043776]
[1751557632321,1.02031659,109280.0,109270.0,0.21340856]
[1751557632522,1.02031659,109280.0,109270.0,0.1991048]
[1751557635226,1.02031659,109280.0,109270.0,0.016134]
[1751557635425,0.1829708,109270.0,109260.0,0.2744659]
[1751557635722,0.94522413,109270.0,109260.0,0.2744659]
[1751557636721,0.94622413,109270.0,109260.0,0.2764659]
[1751557636916,0.94622413,109270.0,109260.0,0.002]
[1751557638126,0.94622413,109270.0,109260.0,0.0163047]
[1751557638417,0.94622413,109270.0,109260.0,0.002]
[1751557643325,0.94622413,109270.0,109250.0,0.2602431]
[1751557643326,0.1829871,109260.0,109250.0,0.0315]
[1751557643530,0.93414043,109260.0,109250.0,0.0315]
[1751557643731,0.96444043,109260.0,109250.0,0.0315]
[1751557644031,0.96444043,109260.0,109250.0,0.2145038]
[1751557644435,0.96444043,109260.0,109250.0,0.0315]
[1751557644626,0.96644043,109260.0,109250.0,0.0315]
[1751557644826,0.97044043,109260.0,109250.0,0.0315]
[1751557646534,0.97044043,109260.0,109250.0,0.214504]
[1751557646744,0.59114002,109260.0,109250.0,0.53070441]
[1751557647036,0.386,109260.0,109250.0,1.21900482]
[1751557647236,0.386,109260.0,109250.0,0.9575968]
[1751557647537,0.386,109260.0,109250.0,0.97188039]
[1751557647943,0.56303756,109260.0,109250.0,0.97188039]
[1751557648132,0.38005036,109260.0,109250.0,0.97188039]
[1751557649045,0.006,109260.0,109250.0,0.97188039]
[1751557649334,0.324,109260.0,109250.0,0.97188039]
[1751557649536,0.323,109260.0,109250.0,0.97188039]
[1751557650340,0.323,109260.0,109250.0,0.917088]
[1751557650835,0.5059872,109260.0,109250.0,0.29088759]
[1751557651041,0.5059872,109260.0,109250.0,0.95184802]
[1751557651637,0.5059872,109260.0,109250.0,0.64756443]
[1751557651844,0.5059872,109260.0,109250.0,0.61558108]
[1751557652140,0.82218761,109260.0,109250.0,0.34558108]
[1751557652339,0.88428761,109260.0,109250.0,0.10047708]
[1751557653241,0.88428761,109260.0,109250.0,0.04571706]
[1751557653543,0.88428761,109260.0,109250.0,0.22872106]
[1751557654639,0.88428761,109260.0,109250.0,0.0315]
[1751557654839,0.88428761,109260.0,109250.0,0.22880822]
[1751557655039,0.5680872,109260.0,109250.0,0.04580422]
[1751557655235,0.88428761,109260.0,109250.0,0.04580422]
[1751557656135,0.88428761,109260.0,109250.0,0.06007518]
[1751557656542,0.57711069,109260.0,109250.0,0.06007518]
[1751557656742,0.8933111,109260.0,109250.0,0.06007518]
[1751557657241,0.57711069,109260.0,109250.0,0.06007518]
[1751557657441,0.8933111,109260.0,109250.0,0.06007518]
[1751557657836,0.8933111,109260.0,109250.0,0.06007522]
[1751557658241,0.9242111,109260.0,109250.0,0.06007522]
[1751557658743,0.183004,109250.0,109240.0,0.05476002]
[1751557659043,0.85090441,109250.0,109240.0,0.0302]
[1751557659242,0.88180441,109250.0,109240.0,0.0302]
[1751557659844,0.90393301,109250.0,109240.0,0.2132207]
[1751557660037,0.90393301,109250.0,109240.0,0.0312]
[1751557660237,0.90493301,109250.0,109240.0,0.0322]
[1751557660739,0.90493301,109250.0,109240.0,0.2152207]
[1751557661544,0.90493301,109250.0,109240.0,0.0322]
[1751557661838,0.90493301,109250.0,109240.0,0.0312]
[1751557662043,0.91493301,109250.0,109240.0,0.2142207]
[1751557665642,0.514004,109250.0,109240.0,0.53042111]
[1751557665949,0.514004,109250.0,109240.0,0.56062111]
[1751557666151,0.514004,109250.0,109240.0,0.59132111]
[1751557670949,0.514004,109250.0,109240.0,0.61993193]
[1751557671849,0.83020441,109250.0,109240.0,0.02961082]
[1751557672050,0.91561805,109250.0,109240.0,0.02961082]
[1751557672239,0.89320441,109250.0,109240.0,0.02961082]
[1751557673149,0.1830208,109240.0,109230.0,0.03373091]
[1751557673350,0.94292121,109240.0,109230.0,0.21676841]
[1751557673649,0.94292121,109240.0,109230.0,0.00183091]
[1751557674246,0.6267208,109240.0,109230.0,0.18486841]
[1751557674445,0.94292121,109240.0,109230.0,0.18486841]
[1751557674844,0.94492121,109240.0,109230.0,0.18586841]
[1751557675044,0.5965208,109240.0,109230.0,0.50206882]
[1751557675344,0.5965208,109240.0,109230.0,0.24936841]
[1751557675345,0.5350208,109240.0,109230.0,0.24936841]
[1751557675550,0.5350208,109240.0,109230.0,0.59796882]
[1751557675945,0.5400208,109240.0,109230.0,0.59896882]
[1751557676943,0.5400208,109240.0,109230.0,0.65896882]
[1751557677947,0.5400208,109240.0,109230.0,0.59896882]
[1751557678551,0.5400208,109240.0,109230.0,0.28276841]
[1751557678750,0.5400208,109240.0,109230.0,0.59896882]
[1751557678950,0.5400208,109240.0,109230.0,0.56656882]
[1751557679152,0.5728208,109240.0,109230.0,0.56656882]
[1751557680664,0.5400208,109240.0,109230.0,0.56656882]
[1751557682459,0.37941388,109240.0,109230.0,0.88276923]
[1751557682665,0.357,109240.0,109230.0,1.15276923]
[1751557683367,0.53406942,109240.0,109230.0,0.9557071]
[1751557683562,0.35104902,109240.0,109230.0,1.2557071]
[1751557683774,0.35104902,109240.0,109230.0,0.63950669]
[1751557684065,0.35104902,109240.0,109230.0,1.2357071]
[1751557684563,0.2287418,109260.0,109240.0,0.0457514]
[1751557684865,0.25596696,109280.0,109270.0,0.1829704]
[1751557685057,0.56839246,109280.0,109270.0,0.49917081]
[1751557685260,0.56839246,109280.0,109270.0,0.62062891]
[1751557685855,0.4953834,109280.0,109270.0,0.3044285]
[1751557686160,0.5052579,109280.0,109270.0,0.2733285]
[1751557686360,0.90099193,109280.0,109270.0,0.2431285]
[1751557686556,0.93109193,109280.0,109270.0,0.2431285]
[1751557686761,0.96052026,109280.0,109270.0,0.2431285]
[1751557687166,0.56778623,109280.0,109270.0,0.2441285]
[1751557687364,0.96352026,109280.0,109270.0,0.0611581]
[1751557688072,0.96352026,109280.0,109270.0,0.0292581]
[1751557689874,0.94109193,109280.0,109270.0,0.0292581]
[1751557690366,0.9634948,109280.0,109270.0,0.0292581]
[1751557692880,0.56776077,109280.0,109270.0,0.0292581]
[1751557693074,0.9634948,109280.0,109270.0,0.0292581]
[1751557693775,0.53766077,109280.0,109270.0,0.2122282]
[1751557693968,0.53766077,109280.0,109270.0,0.2444282]
[1751557694681,0.53766077,109280.0,109270.0,0.0614581]
[1751557694874,0.9640948,109280.0,109270.0,0.0292581]
[1751557695571,0.9640948,109280.0,109270.0,0.02914624]
[1751557696175,0.56836077,109280.0,109270.0,0.02914624]
[1751557696481,0.9640948,109280.0,109270.0,0.02914624]
[1751557696880,0.56836077,109280.0,109270.0,0.02914624]
[1751557697472,0.9640948,109280.0,109270.0,0.02914624]
[1751557698474,0.9640948,109280.0,109270.0,0.001]
[1751557698679,0.9640948,109280.0,109270.0,0.02915083]
[1751557698980,0.9640948,109280.0,109270.0,0.02915976]
[1751557701479,0.9640948,109280.0,109270.0,0.01530285]
[1751557701672,0.9640948,109280.0,109270.0,0.02923129]
[1751557703377,0.9640948,109280.0,109270.0,0.01492844]
[1751557704279,0.9640948,109280.0,109270.0,0.02923233]
[1751557704883,1.03860117,109280.0,109270.0,0.02923233]
[1751557705083,1.03860117,109280.0,109270.0,0.001]
[1751557705382,1.03860117,109280.0,109270.0,0.01497203]
[1751557706084,0.95959343,109280.0,109270.0,0.01497203]
[1751557706276,0.95959343,109280.0,109270.0,0.001]
[1751557706583,0.95959343,109280.0,109270.0,0.01499909]
[1751557707177,0.95959343,109280.0,109270.0,0.001]
[1751557707482,0.95959343,109280.0,109270.0,0.01530389]
[1751557707683,0.95959343,109280.0,109270.0,0.001]
[1751557707877,0.64286714,109280.0,109270.0,0.001]
[1751557708084,0.64286714,109280.0,109270.0,0.35092629]
[1751557708386,0.95959343,109280.0,109270.0,0.0342]
[1751557709082,0.95959343,109280.0,109270.0,0.06248076]
[1751557709284,0.95959343,109280.0,109270.0,0.04850369]
[1751557709685,0.95959343,109280.0,109270.0,0.0342]
[1751557709886,0.95959343,109280.0,109270.0,0.06248356]
[1751557712186,0.95979165,109280.0,109270.0,0.06248356]
[1751557712886,0.93719056,109280.0,109270.0,0.06248356]
[1751557713389,0.95979279,109280.0,109270.0,0.06248356]
[1751557714185,0.95979279,109280.0,109270.0,0.02928356]
[1751557716183,0.95979279,109280.0,109270.0,0.06218356]
[1751557716883,0.95979279,109280.0,109270.0,0.02928356]
[1751557717489,0.95979279,109280.0,109270.0,0.01497988]
[1751557717687,0.95979279,109280.0,109270.0,0.02928351]
[1751557717993,1.80903279,109280.0,109270.0,0.02928351]
[1751557718493,0.95979279,109280.0,109270.0,0.02928351]
[1751557718695,1.80911279,109280.0,109270.0,0.02928351]
[1751557720792,1.80911279,109280.0,109270.0,0.01430363]
[1751557720999,0.1829699,109270.0,109260.0,0.0329]
[1751557721297,0.95929842,109270.0,109260.0,0.0329]
[1751557721795,0.1829867,109260.0,109250.0,0.0323]
[1751557721996,1.74291522,109260.0,109250.0,0.0652]
[1751557722499,1.74191522,109260.0,109250.0,0.0652]
[1751557723199,1.74191522,109260.0,109250.0,0.0329]
[1751557723803,1.74291522,109260.0,109250.0,0.0329]
[1751557723994,1.74291522,109260.0,109250.0,0.0642]
[1751557724294,1.74491522,109260.0,109250.0,0.2482034]
[1751557724498,1.74491522,109260.0,109250.0,0.0652]
[1751557726503,1.74491522,109260.0,109250.0,0.2482034]
[1751557726704,1.74491522,109260.0,109250.0,0.0652]
[1751557727302,1.74491522,109260.0,109250.0,0.2482034]
[1751557727503,1.74491522,109260.0,109250.0,0.0652]
[1751557727902,1.42818893,109260.0,109250.0,0.0652]
[1751557728096,1.74491522,109260.0,109250.0,0.0652]
[1751557728805,1.42818893,109260.0,109250.0,0.0652]
[1751557729005,1.74491522,109260.0,109250.0,0.0652]
[1751557729207,0.54758893,109260.0,109250.0,0.56492969]
[1751557730009,0.54758893,109260.0,109250.0,0.2482034]
[1751557730211,0.54758893,109260.0,109250.0,0.56492969]
[1751557732910,0.54758893,109260.0,109250.0,0.57896468]
[1751557736212,0.5249867,109260.0,109250.0,0.57896468]
[1751557737921,0.54758302,109260.0,109250.0,0.57896468]
[1751557739619,0.36559632,109260.0,109250.0,1.33874697]
[1751557739824,0.30320607,109280.0,109270.0,0.1829699]
[1751557740021,0.5229601,109280.0,109270.0,0.57969619]
[1751557740323,0.5229601,109280.0,109270.0,0.56349619]
[1751557740717,0.5229601,109280.0,109270.0,0.87349619]
[1751557740916,0.34,109280.0,109270.0,0.87349619]
[1751557741120,0.344,109280.0,109270.0,1.05752019]
[1751557741421,0.29041281,109280.0,109270.0,1.61702709]
[1751557741921,0.19061281,109280.0,109270.0,1.93375338]
[1751557742120,0.3057667,109310.0,109300.0,0.1829197]
[1751557742425,0.6157667,109310.0,109300.0,0.49964599]
[1751557742621,0.6472667,109310.0,109300.0,0.49964599]
[1751557743226,0.6562667,109310.0,109300.0,0.50164599]
[1751557743421,0.6632667,109310.0,109300.0,0.50264599]
[1751557743826,0.97999299,109310.0,109300.0,0.1859198]
[1751557745926,0.97999299,109310.0,109300.0,0.003]
[1751557746126,0.97999299,109310.0,109300.0,0.1859198]
[1751557747735,0.6632667,109310.0,109300.0,0.1859198]
[1751557748228,0.6632667,109310.0,109300.0,0.50264609]
[1751557759623,0.6632667,109310.0,109300.0,0.1859198]
[1751557761034,0.6632667,109310.0,109300.0,0.50264609]
[1751557762936,0.617537,109310.0,109300.0,0.50264609]
[1751557763235,0.5718032,109310.0,109300.0,0.59264609]
[1751557763438,0.5718032,109310.0,109300.0,0.50264609]
[1751557763629,0.5718032,109310.0,109300.0,1.35468609]
[1751557765628,0.3574,109310.0,109300.0,1.43468609]
[1751557765935,0.3574,109310.0,109300.0,1.57568609]
[1751557766132,0.002,109320.0,109300.0,2.52246858]
[1751557766332,0.072,109320.0,109310.0,1.08517578]
[1751557766536,0.352,109320.0,109310.0,1.40158263]
[1751557766837,0.352,109320.0,109310.0,1.58454262]
[1751557767932,0.5348865,109320.0,109310.0,1.93779634]
[1751557768133,0.3834,109320.0,109310.0,1.93779634]
[1751557768332,0.4152,109320.0,109310.0,0.84703634]
[1751557768528,0.4162,109320.0,109310.0,1.69991634]
[1751557769238,0.5990865,109320.0,109310.0,1.69991634]
[1751557769938,0.4162,109320.0,109310.0,1.69991634]
[1751557770130,0.5990865,109320.0,109310.0,1.47015634]
[1751557770325,0.5990865,109320.0,109310.0,1.71015634]
[1751557770531,0.4162,109320.0,109310.0,1.71015634]
[1751557770939,0.5990865,109320.0,109310.0,1.71015634]
[1751557771141,0.4162,109320.0,109310.0,1.70995634]
[1751557772834,0.5990865,109320.0,109310.0,0.51603634]
[1751557773138,0.62170994,109320.0,109310.0,1.05239005]
[1751557773641,0.62170994,109320.0,109310.0,0.51603634]
[1751557773937,0.62170994,109320.0,109310.0,1.36923634]
[1751557774734,0.43882344,109320.0,109310.0,1.99596263]
[1751557774934,0.3844,109320.0,109310.0,1.67923634]
[1751557775134,0.353,109320.0,109310.0,2.02776263]
[1751557775327,0.353,109320.0,109310.0,1.71113634]
[1751557776138,0.3849,109320.0,109310.0,1.71113634]
[1751557777935,0.3849,109320.0,109310.0,1.71103634]
[1751557779630,0.3849,109320.0,109310.0,1.71113634]
[1751557780236,0.3849,109320.0,109310.0,1.71103634]
[1751557781346,0.3849,109320.0,109310.0,1.89399633]
[1751557781845,0.3849,109320.0,109310.0,1.89409633]
[1751557784646,0.3849,109320.0,109310.0,1.71113634]
[1751557786448,0.3849,109320.0,109310.0,1.71103634]
[1751557788940,0.3092523,109320.0,109310.0,2.50322262]
[1751557789141,0.062,109340.0,109330.0,0.1828696]
[1751557789346,0.142,109340.0,109330.0,1.70957589]
[1751557789540,0.062,109340.0,109330.0,1.70957589]
[1751557790650,0.066,109340.0,109330.0,1.71057589]
[1751557790849,0.069,109340.0,109330.0,1.71057589]
[1751557791845,0.069,109340.0,109330.0,1.71984156]
[1751557794055,0.069,109340.0,109330.0,1.68914156]
[1751557794450,0.069,109340.0,109330.0,1.76060384]
[1751557803258,0.069,109340.0,109330.0,1.77487427]
[1751557804960,0.09163758,109340.0,109330.0,1.79158299]
[1751557805161,0.069,109340.0,109330.0,1.82308299]
[1751557805357,0.069,109340.0,109330.0,1.82308517]
[1751557805558,0.069,109340.0,109330.0,1.79158517]
[1751557807260,0.069,109340.0,109330.0,0.61557888]
[1751557807564,0.069,109340.0,109330.0,1.78746517]
[1751557811054,0.069,109340.0,109330.0,0.93230517]
[1751557811258,0.2518529,109340.0,109330.0,0.21485093]
[1751557811456,0.38572629,109340.0,109330.0,1.06913093]
[1751557811763,0.069,109340.0,109330.0,1.06913093]
[1751557811965,0.2518529,109340.0,109330.0,1.06913093]
[1751557812356,0.2518529,109340.0,109330.0,0.21485093]
[1751557812557,0.2518529,109340.0,109330.0,1.06913093]
[1751557812863,0.2518529,109340.0,109330.0,0.53157722]
[1751557813063,0.2518529,109340.0,109330.0,1.38573722]
[1751557813265,0.069,109340.0,109330.0,1.39498902]
[1751557813658,0.2518529,109340.0,109330.0,1.39498902]
[1751557814364,0.069,109340.0,109330.0,1.39498902]
[1751557817767,0.069,109340.0,109330.0,1.72498902]
[1751557817967,0.069,109340.0,109330.0,1.39498902]
[1751557818167,0.069,109340.0,109330.0,1.66498902]
[1751557818370,0.069,109340.0,109330.0,1.73809592]
[1751557819364,0.069,109340.0,109330.0,1.72382331]
[1751557823967,0.069,109340.0,109330.0,1.45382331]
[1751557824172,0.069,109340.0,109330.0,1.73382331]
[1751557827672,0.069,109340.0,109330.0,1.66071641]
[1751557828582,0.069,109340.0,109330.0,1.73382331]
[1751557828975,0.069,109340.0,109330.0,1.12784522]
[1751557829183,0.38572629,109340.0,109330.0,1.44457151]
[1751557829689,0.38572629,109340.0,109330.0,1.12460522]
[1751557829884,0.38572629,109340.0,109330.0,1.38460522]
[1751557830078,0.38572629,109340.0,109330.0,1.31149832]
[1751557830275,0.38572629,109340.0,109330.0,1.05149832]
[1751557830784,0.38572629,109340.0,109330.0,1.32149832]
[1751557831177,0.069,109340.0,109330.0,1.32149832]
[1751557831983,0.069,109340.0,109330.0,1.71133151]
[1751557834289,0.069,109340.0,109330.0,0.86041151]
[1751557834585,0.2518529,109340.0,109330.0,1.44029151]
[1751557834882,0.59121184,109340.0,109330.0,1.05037832]
[1751557835687,0.59121184,109340.0,109330.0,0.20057832]
[1751557837086,0.56857919,109340.0,109330.0,0.20057832]
[1751557839290,0.56857919,109340.0,109330.0,0.21483087]
[1751557841287,0.59120374,109340.0,109330.0,0.21483087]
[1751557841494,0.60027129,109340.0,109330.0,0.21483087]
[1751557844091,0.57764674,109340.0,109330.0,0.21483087]
[1751557847595,0.60027808,109340.0,109330.0,0.21483087]
[1751557848198,0.57764674,109340.0,109330.0,0.21483087]
[1751557853801,0.89351635,109340.0,109330.0,0.21483087]
[1751557854500,0.89351635,109340.0,109330.0,0.21487151]
[1751557857003,0.91610521,109340.0,109330.0,0.21487151]
[1751557857201,0.91610577,109340.0,109330.0,0.03200191]
[1751557857604,0.1828863,109320.0,109310.0,0.40957815]
[1751557857804,0.49918425,109320.0,109310.0,0.33647125]
[1751557858002,0.56238425,109320.0,109310.0,0.33647125]
[1751557858304,0.56238425,109320.0,109310.0,0.6627692]
[1751557859205,0.56338425,109320.0,109310.0,0.6627692]
[1751557862607,0.56338425,109320.0,109310.0,0.34647125]
[1751557862907,0.56338425,109320.0,109310.0,0.6627692]
[1751557863701,0.2470863,109320.0,109310.0,0.6627692]
[1751557863906,0.56338425,109320.0,109310.0,0.6627692]
[1751557866208,0.56338425,109320.0,109310.0,0.6170438]
[1751557866407,0.0642,109320.0,109310.0,0.6170438]
[1751557866602,0.0342,109320.0,109310.0,1.10334175]
[1751557866807,0.001,109320.0,109310.0,1.13484175]
[1751557867008,0.001,109320.0,109310.0,1.20794865]
[1751557867213,0.001,109320.0,109310.0,1.7374707]
[1751557867512,0.34939795,109320.0,109310.0,1.7374707]
[1751557867915,0.0331,109320.0,109310.0,1.73750481]
[1751557868612,0.53231846,109320.0,109310.0,0.29474585]
[1751557868913,0.56351846,109320.0,109310.0,0.20329735]
[1751557869416,0.56351846,109320.0,109310.0,0.20229735]
[1751557869911,0.56351846,109320.0,109310.0,0.20529735]
[1751557870612,0.56351846,109320.0,109310.0,0.20229735]
[1751557870803,0.56351846,109320.0,109310.0,0.19929735]
[1751557873111,0.1829198,109300.0,109290.0,0.0731069]
[1751557873412,0.49925186,109300.0,109290.0,0.1829366]
[1751557873609,0.58468919,109300.0,109290.0,0.1829366]
[1751557874014,0.08543733,109300.0,109290.0,0.49926866]
[1751557874209,0.26835713,109300.0,109290.0,0.49926866]
[1751557874411,0.2458198,109300.0,109290.0,0.49926866]
[1751557874623,0.26834718,109300.0,109290.0,0.19723498]
[1751557874914,0.26934718,109300.0,109290.0,0.20323498]
[1751557875316,0.2468198,109300.0,109290.0,0.20323498]
[1751557876015,0.31879091,109300.0,109290.0,0.20323498]
[1751557876317,0.31879091,109300.0,109290.0,0.1889366]
[1751557878218,0.63512297,109300.0,109290.0,0.1889366]
[1751557878416,0.63512297,109300.0,109290.0,0.20316555]
[1751557880208,0.31879091,109300.0,109290.0,0.1889366]
[1751557880716,0.63512297,109300.0,109290.0,0.1889366]
[1751557881810,0.45220317,109300.0,109290.0,0.1889366]
[1751557882010,0.0639,109300.0,109290.0,0.83526866]
[1751557882410,0.0639,109300.0,109290.0,0.88026551]
[1751557883212,0.0639,109300.0,109290.0,0.55026551]
[1751557883413,0.0639,109300.0,109290.0,0.84026539]
[1751557885019,0.0639,109300.0,109290.0,0.60026539]
[1751557885522,0.0639,109300.0,109290.0,0.23393333]
[1751557886518,0.0639,109300.0,109290.0,0.23393392]
[1751557886714,0.0639,109300.0,109290.0,0.49393392]
[1751557887021,0.0639,109300.0,109290.0,0.23393392]
[1751557887424,0.0639,109300.0,109290.0,0.55393392]
[1751557887721,0.0639,109300.0,109290.0,0.23393392]
[1751557888322,0.0639,109300.0,109290.0,0.20323392]
[1751557889425,0.56315176,109300.0,109290.0,0.20323392]
[1751557889724,0.56315176,109300.0,109290.0,1.04891392]
[1751557890319,0.56315176,109300.0,109290.0,1.0346166]
[1751557890525,0.56315176,109300.0,109290.0,1.04891433]
[1751557890924,0.56315176,109300.0,109290.0,0.20323433]
[1751557891622,0.58563155,109300.0,109290.0,0.20323433]
[1751557891824,0.56315176,109300.0,109290.0,0.02029773]
[1751557892024,0.1829365,109290.0,109280.0,0.2286738]
[1751557892220,0.1829532,109280.0,109270.0,0.29290739]
[1751557892425,0.56308526,109280.0,109270.0,0.29290739]
[1751557893327,0.56008526,109280.0,109270.0,0.29290739]
[1751557894234,0.56008526,109280.0,109270.0,0.29690739]
[1751557895535,0.59288526,109280.0,109270.0,0.29690739]
[1751557896132,0.59388526,109280.0,109270.0,0.30190739]
[1751557896937,0.59388526,109280.0,109270.0,0.25616539]
[1751557899335,0.59388526,109280.0,109270.0,0.23953294]
[1751557901134,0.77690927,109280.0,109270.0,0.01083024]
[1751557901342,0.1829867,109260.0,109250.0,0.34605714]
[1751557901541,0.49931876,109260.0,109250.0,0.35073095]
[1751557901743,0.56361876,109260.0,109250.0,0.36073095]
[1751557902842,0.56461876,109260.0,109250.0,0.35273095]
[1751557903743,0.88095082,109260.0,109250.0,0.0156364]
[1751557903942,0.89607271,109260.0,109250.0,0.0156364]
[1751557904142,0.91849407,109260.0,109250.0,0.02994164]
[1751557904942,0.91949407,109260.0,109250.0,0.02994164]
[1751557905139,1.10255007,109260.0,109250.0,0.02994164]
[1751557905339,1.10255007,109260.0,109250.0,0.01159344]
[1751557906342,1.10155007,109260.0,109250.0,0.01159344]
[1751557906543,1.10355007,109260.0,109250.0,0.01259344]
[1751557906742,1.10355007,109260.0,109250.0,0.001]
[1751557907040,1.13545007,109260.0,109250.0,0.001]
[1751557907638,1.13545007,109260.0,109250.0,0.002]
[1751557907839,1.14437287,109260.0,109250.0,0.002]
[1751557909442,0.51170875,109260.0,109250.0,0.1850033]
[1751557909642,0.31972995,109260.0,109250.0,0.1850033]
[1751557909944,0.11432189,109260.0,109250.0,0.1850033]
[1751557910150,0.29730849,109260.0,109250.0,0.50133536]
[1751557910348,0.29730849,109260.0,109250.0,0.53313536]
[1751557910645,0.29730849,109260.0,109250.0,0.2168033]
[1751557911439,0.29730849,109260.0,109250.0,0.2491033]
[1751557913748,0.61364055,109260.0,109250.0,0.2168033]
[1751557914139,0.29730849,109260.0,109250.0,0.2168033]
[1751557914344,0.61364055,109260.0,109250.0,0.2168033]
[1751557914643,0.61364055,109260.0,109250.0,0.0338]
[1751557914949,0.92997261,109260.0,109250.0,0.002]
[1751557916848,1.79744112,109260.0,109250.0,0.002]
[1751557918356,1.79744112,109260.0,109250.0,0.01590512]
[1751557919650,2.03316112,109260.0,109250.0,0.01590512]
[1751557922956,2.03323052,109260.0,109230.0,0.27636921]
[1751557923152,0.49935216,109240.0,109230.0,0.24457662]
[1751557923450,1.34471216,109240.0,109230.0,0.24457662]
[1751557923656,1.44111216,109240.0,109230.0,0.24457662]
[1751557924051,1.44111216,109240.0,109230.0,0.23061071]
[1751557924459,1.44211216,109240.0,109230.0,0.23361071]
[1751557925055,1.44211216,109240.0,109230.0,0.23561071]
[1751557928461,1.51366396,109240.0,109230.0,0.23561071]
[1751557928766,1.51366396,109240.0,109230.0,0.18985311]
[1751557929061,1.51366396,109240.0,109230.0,0.00683091]
[1751557929263,0.66830396,109240.0,109230.0,0.00683091]
[1751557929651,0.63790396,109240.0,109230.0,0.18986771]
[1751557929855,0.2287613,109250.0,109240.0,0.2745066]
[1751557930054,0.25099201,109250.0,109240.0,0.3832613]
[1751557930262,0.56732407,109250.0,109240.0,0.2460201]
[1751557930566,0.62992407,109250.0,109240.0,0.2460201]
[1751557931062,0.60032407,109250.0,109240.0,0.2480201]
[1751557931263,0.60032407,109250.0,109240.0,0.2809201]
[1751557932069,0.67346542,109250.0,109240.0,0.2809201]
[1751557932563,0.67348673,109250.0,109240.0,0.2809201]
[1751557933462,0.67348673,109250.0,109240.0,0.2951145]
[1751557934370,0.65123471,109250.0,109240.0,0.2951145]
[1751557934965,0.65123471,109250.0,109240.0,0.2851145]
[1751557935172,0.65123471,109250.0,109240.0,0.29884403]